{"text_format":"2","workbook":"xlsx","n_sheets":1,"sheets":["Árazótábla"],"not_rendered":{"charts":0,"images":0,"macros":0,"external_links":0,"defined_names":0,"comments":0,"pivot_tables":0},"unopened":[],"bounds":{"document_bytes":16777216,"sheet_cells":100000,"run_cost":"one","rows_first":2000,"rows_last":500,"rows_between":2000,"halvings":0,"cell_chars":16384,"cell_head_chars":4096},"cells_cut":0,"cells_raw":0,"read":"whole","date_system":"1900"}

{"sheet":"Árazótábla","index":0,"n_rows":16,"n_cols":8,"rows_kept":16,"cut":false,"hidden":false,"merged":[[3,0,3,5],[3,6,3,7],[1,0,1,7],[0,0,0,7],[14,0,15,0],[11,1,11,2],[12,1,12,2]]}
["Kérjük, hogy az ajánlati egységárait az alábbi paraméterek szerint lebontva, tételesen a táblázat kitöltésével adja meg!                           (A táblázat az árak tekintetében képletet tartalmaz!)"]
["* -jelölt oszlopban a tervezett lehívandó mennyiségek, csak tájékoztató jellegűek!  A keretszerződéses időszak alatt ténylegesen lehívásra kerülő mennyiségek előre nem tervezhetők, ezért az Megrendelő fenntartja a jogát, hogy a kiírásban megadott tervezett mennyiségektől eltérően hívja le a termékeket. Az eltérés mértéke: kb. ± 100 %. A keretszerződés időtartama alatt, a Vállalkozó vállalja, hogy az eseti igények alapján történő lehívásoknak eleget tesz és garantálja, hogy ajánlati árát a keretszerződés egész futamideje alatt tartani képes,  A felmerülő tényleges eseti igények alapján történnek a lehívások illetve megvalósulások."]
["Típus/Teljesítmény","Karbantartási díj","*Tervezett igény / db","Nettó egységár Ft/db","ÁFA (%)","Bruttó egységár Ft/db","Tervezett nettó összesen ár/ Ft","Tervezett bruttó összesen ár/ Ft"]
[" légkondícionáló berendezések"]
["Split légkondícionáló berendezések (1 beltéri, 1 kültéri egység)",0,1212,0,27,{"$f":"(D5*1.27)","v":0},{"$f":"(C5*D5)","v":0},{"$f":"(G5*1.27)","v":0}]
["Multi split légkondícionáló berendezések (2 beltéri, 1 kültéri egység)",0,90,0,27,{"$f":"(D6*1.27)","v":0},0,{"$f":"(G6*1.27)","v":0}]
["Multi split légkondícionáló berendezések (3 beltéri, 1 kültéri egység)",0,60,0,27,0,{"$f":"(C7*D7)","v":0},0]
["Multi split légkondícionáló berendezések (4 beltéri, 1 kültéri egység)",0,32,0,27,0,{"$f":"(C8*D8)","v":0},0]
["Multi split légkondícionáló berendezések (5 beltéri, 1 kültéri egység)",0,20,0,27,0,0,0]
["Ablakklíma",0,30,0,27,0,0,0]
["Mobilklíma",0,25,0,27,0,0,0]
[null,"Nettó összesen:",null,{"$f":"SUM(D5:D11)","v":0},null,null,{"$f":"SUM(G5:G11)","v":0}]
[null,"Bruttó összesen",null,null,null,{"$f":"SUM(F5:F11)","v":0},null,{"$f":"SUM(H5:H11)","v":0}]
[]
["Javítási rezsióradíj","Nettó díj","ÁFA (%)","Bruttó díj"]
[null,0,27,{"$f":"(B16*1.27)","v":0}]